Cogmind - Beta 10.2 @@@ ROGUE MODE // 2021.06.14 @ 16:44:42 Player: Finestep Result: Self-destructed Performance ------------- Evolutions (5) 2500 Regions Visited (20) 4000 Robots Destroyed (331) 1655 Value Destroyed (9938) 9938 Prototype IDs (33) 660 Alien Tech Used (0) 0 Bonus (2659) 2659 TOTAL SCORE: 21412 Bonus ------- High Alert Combat Kills 903 Follower Combat Kills 1755 Entered Garrisons 200 Network Hubs Disabled 400 Met Data Miner 300 Built Enhanced Grunts 300 A7 Reached Mainframe 300 Friendly Fire -1499 Cogmind --------- Core Integrity 960/1000 Matter 255/300 Energy 55/100 System Corruption 4% Temperature Cool (4) Movement Flying (27) Location -5/Factory Parts ------- > --- POWER (2) -------- (None) > --- PROPULSION (5) --- Improved Flight Unit Improved Flight Unit Improved Cesium-ion Thruster Nuclear Pulse Thruster > --- UTILITY (8) ------ Large Storage Unit Experimental Sensor Array Advanced Signal Interpreter Improved Utility Shielding Advanced Hacking Suite Advanced Hacking Suite Ghost Barrier > --- WEAPON (2) ------- Phasing Sabre > --- INVENTORY (10) --- Light Angular Momentum Engine Improved Energy Well (600) Improved Light Armor Plating Centrium Medium Armor Plating Advanced Hacking Suite Advanced Drone Bay (2/2) Neutron Cannon Hypervelocity Gauss Rifle Long-range Missile Launcher Peak State ------------ > --- POWER ------------ Light Angular Momentum Engine Neutrino Core > --- PROPULSION ------- Improved Flight Unit Improved Flight Unit Improved Cesium-ion Thruster Nuclear Pulse Thruster Nuclear Pulse Thruster > --- UTILITY ---------- Large Storage Unit Experimental Sensor Array Advanced Signal Interpreter Improved Utility Shielding Advanced Hacking Suite Advanced Hacking Suite System Mapper Ghost Barrier > --- WEAPON ----------- Phasing Sabre > --- INVENTORY -------- Light Angular Momentum Engine Improved Energy Well Improved Light Armor Plating Centrium Medium Armor Plating Advanced Hacking Suite Advanced Drone Bay Neutron Cannon Hypervelocity Gauss Rifle Long-range Missile Launcher [Rating: 86] Favorites ----------- Power Enhanced Nuclear Core Engine Light Angular Momentum Engine Power Core Enhanced Nuclear Core Propulsion Light Treads Treads Light Treads Leg Enhanced Flexi-carbon Leg Wheel Armored Wheel Flight Unit Improved Flight Unit Utility Large Storage Unit Device Experimental Sensor Array Storage Large Storage Unit Processor Advanced Signal Interpreter Hackware Ghost Barrier Protection Medium Reactive Plating Weapon Gauss Rifle Energy Gun Improved EM Shotgun Energy Cannon Particle Cannon Ballistic Gun Gauss Rifle Ballistic Cannon Mini Assault Cannon Launcher Proton Missile Launcher Special Weapon Mining Laser Slashing Weapon Phasing Sabre Piercing Weapon Heavy Pick Build | -11 -10 -10 -9 -9 -9 -8 -8 -8 -8 -7 -7 -7 -7 -6 -6 -6 -6 -6 -6 -5 ------- Run | Scr Mat Min Mat Min Exi Min Mat Gar Mat Fac Low Low Dat Pro Fac Ext Cet Arc Hub Fac Slots Evolved 10 | . . . 2 . . . 2 . . 2 . . . . 2 . . . . 2 Power 1 | . . . . . . . . . . . . . . . . . . . . 1 Propulsion 3 | . . . 1 . . . . . . . . . . . 2 . . . . . Utility 6 | . . . 1 . . . 2 . . 2 . . . . . . . . . 1 Weapon . | . . . . . . . . . . . . . . . . . . . . . Parts Attached 406 | 6 16 1 48 1 1 1 18 28 43 59 6 28 16 6 57 24 9 8 21 9 Power 25 | 1 1 . 4 . . . 1 2 1 4 . 3 . . 2 2 . 1 1 2 Engine 16 | 1 1 . 4 . . . 1 1 1 1 . . . . 1 2 . 1 1 1 Core 9 | . . . . . . . . 1 . 3 . 3 . . 1 . . . . 1 Reactor . | . . . . . . . . . . . . . . . . . . . . . Propulsion 81 | 2 1 . 15 . 1 . 5 10 11 10 . . 4 . 13 3 3 . 3 . Treads 47 | 2 1 . 15 . 1 . 4 2 11 10 . . 1 . . . . . . . Leg 16 | . . . . . . . . 7 . . . . 3 . 6 . . . . . Wheel 1 | . . . . . . . . 1 . . . . . . . . . . . . Hover . | . . . . . . . . . . . . . . . . . . . . . Flight 17 | . . . . . . . 1 . . . . . . . 7 3 3 . 3 . Utility 154 | 1 4 . 5 . . 1 5 6 13 28 2 13 7 4 27 15 3 5 9 6 Device 63 | . . . . . . . . 1 . 15 1 9 2 3 16 7 . 3 4 2 Storage 15 | 1 4 . 2 . . 1 1 . 1 . . . 1 1 . 3 . . . . Processor 4 | . . . . . . . . . . 3 . . . . . . . . . 1 Hackware 9 | . . . . . . . . . . 2 . . . . 4 1 . 1 . 1 Protection 63 | . . . 3 . . . 4 5 12 8 1 4 4 . 7 4 3 1 5 2 Artifact . | . . . . . . . . . . . . . . . . . . . . . Weapon 146 | 2 10 1 24 1 . . 7 10 18 17 4 12 5 2 15 4 3 2 8 1 Energy Gun 19 | 2 1 1 2 . . . . . 6 3 1 1 . . 2 . . . . . Energy Cannon 16 | . . . 4 . . . 1 1 . . . . . 1 4 1 . . 4 . Ballistic Gun 67 | . 4 . 12 . . . 4 8 9 10 2 6 2 1 2 . 1 2 4 . Ballistic Cannon 5 | . . . . 1 . . . . . 1 . 1 1 . 1 . . . . . Launcher 20 | . 3 . 2 . . . 2 1 3 2 1 2 1 . 1 . 1 . . 1 Special Weapon 6 | . 2 . 4 . . . . . . . . . . . . . . . . . Impact Weapon . | . . . . . . . . . . . . . . . . . . . . . Slashing Weapon 9 | . . . . . . . . . . 1 . 2 1 . 2 2 1 . . . Piercing Weapon 4 | . . . . . . . . . . . . . . . 3 1 . . . . Special Melee Weapon . | . . . . . . . . . . . . . . . . . . . . . Unidentified Prototypes 11 | . . . . . . . . . 2 2 . 2 2 . . 1 2 . . . Parts Lost 50 | . 4 1 3 . . . 9 13 . 8 . 1 1 . 3 2 . . 2 3 Power 6 | . 1 . 1 . . . 1 1 . . . . . . . 1 . . . 1 Propulsion 18 | . 1 . . . . . 5 4 . 3 . . 1 . 2 . . . 1 1 Utility 13 | . . . . . . . 2 4 . 3 . . . . 1 1 . . 1 1 Weapon 13 | . 2 1 2 . . . 1 4 . 2 . 1 . . . . . . . . Highest Loss Streak 8 | . 3 1 1 . . . 8 6 . 5 . 1 1 . 1 1 . . 1 1 Average Slot Usage (%) 98 | . 97 100 99 100 100 100 96 94 96 98 100 99 91 100 99 98 93 94 93 85 Engine 6 | . 13 14 10 11 11 11 9 5 8 4 . . . . 3 4 6 6 6 5 Core 2 | . . . . . . . . 3 . 2 7 7 7 7 2 . . . . . Treads 17 | . 28 28 33 33 33 33 25 . 24 22 23 23 15 . . . . . . . Leg 3 | . . . . . . . . 20 . . . . 7 23 14 . . . . . Flight 6 | . . . . . . . . . . . . . . . 17 33 33 33 33 27 Device 3 | . . . . . . . . . . 5 7 7 4 6 5 5 . 8 5 4 Storage 22 | . 26 28 28 33 33 33 35 30 27 23 23 23 23 25 15 7 6 6 6 5 Processor 3 | . . . . . . . . . . 7 7 7 7 7 6 6 6 6 6 5 Hackware 4 | . . . . . . . . . . 5 . . . . 10 20 20 20 20 19 Protection 7 | . . . 4 . . . 8 13 15 7 15 14 17 12 6 5 12 3 6 7 Energy Gun 1 | . 9 4 1 . . . . . 5 . . . . . . . . . . . Ballistic Gun 10 | . 17 23 15 15 11 11 9 17 12 13 14 10 3 6 3 . . 1 . . Ballistic Cannon 1 | . . . . 6 11 11 7 . . . . 1 . 7 1 . . . . . Slashing Weapon 1 | . . . . . . . . . . . . 1 . . 3 6 6 6 6 5 Naked Turns . | . . . . . . . . . . . . . . . . . . . . . Heaviest Build 130 | 9 39 40 64 67 67 67 93 83 95 130 121 126 100 100 102 39 34 39 47 46 Greatest Support 124 | 40 40 40 60 60 60 60 60 35 66 72 72 72 84 84 124 36 34 34 36 36 Greatest Overweight (x) 10 | . . . 1 1 1 1 3 6 5 2 1 1 1 1 10 1 1 10 1 1 Average Overweight (x) . | . . . . 1 1 1 1 2 1 1 1 1 1 1 . . . 2 . . Largest Inventory Capacity 28 | 6 16 16 22 22 22 22 28 28 24 24 24 24 24 28 28 10 10 10 10 10 Average Capacity 19 | 5 8 16 19 22 22 22 27 24 22 24 24 24 24 25 17 8 10 10 10 10 Most Carried 28 | 4 12 12 22 22 22 22 24 22 24 24 24 24 24 25 28 10 10 10 10 10 Average Carried 18 | 2 6 11 19 21 21 22 22 17 22 23 23 23 23 24 17 7 9 9 9 9 Final Capacity 28 | 6 16 16 22 22 22 22 28 22 24 24 24 24 24 28 8 10 10 10 10 10 Final Carried 25 | 4 12 12 22 22 22 22 19 22 24 24 24 24 24 25 8 10 10 10 9 10 Class Distribution -------------------- 55% | Hauler-Mutant 14% | Scavenger-Mutant 10% | Mutant 8% | Hacker-Sprinter 3% | Commander-Mutant 3% | Hacker-Mutant 3% | Commander-Sprinter Dominant Class ---------------- Mutant | -10/Materials Mutant | -10/Mines Scavenger-Mutant | -9/Materials Hauler-Mutant | -9/Mines Hauler-Mutant | -9/Exiles Hauler-Mutant | -8/Mines Hauler-Mutant | -8/Materials Hauler-Mutant | -8/Garrison Hauler-Mutant | -8/Materials Hauler-Mutant | -7/Factory Hauler-Mutant | -7/Lower Caves Hauler-Mutant | -7/Lower Caves Hauler-Mutant | -7/Data Miner Hauler-Mutant | -6/Proximity Caves Hauler-Mutant | -6/Factory Hacker-Sprinter | -6/Extension Commander-Sprinter | -6/Cetus Commander-Mutant | -6/Archives Hacker-Sprinter | -6/Hub_04(d) Wizard-Sprinter | -5/Factory Resources | -11 -10 -10 -9 -9 -9 -8 -8 -8 -8 -7 -7 -7 -7 -6 -6 -6 -6 -6 -6 -5 ----------- Run | Scr Mat Min Mat Min Exi Min Mat Gar Mat Fac Low Low Dat Pro Fac Ext Cet Arc Hub Fac Matter Collected 9418 | 260 249 14 1005 129 47 86 395 1166 1333 1595 211 578 213 46 1066 315 133 262 100 215 Remotely . | . . . . . . . . . . . . . . . . . . . . . Salvage Created 13870 | 101 857 49 1739 106 . 68 573 924 2311 2011 185 660 389 36 1839 1068 47 280 363 264 Parts 691 | 5 45 3 120 9 . 3 26 30 128 85 12 26 14 3 78 45 5 18 23 13 Haulers Intercepted 25 | . 2 . 6 . . . 1 . 5 3 . 1 . . 2 4 . . . 1 Recyclers Shooed 12 | . . . . . . 2 1 . 5 3 . . . . 1 . . . . . Parts Field Recycled . | . . . . . . . . . . . . . . . . . . . . . Retrieved Matter . | . . . . . . . . . . . . . . . . . . . . . Parts Self-Destructed 27 | . . . . . . . . . . . 10 15 . 2 . . . . . . Prevented 18 | . . . . . . . . . . . 5 13 . . . . . . . . Kills | -11 -10 -10 -9 -9 -9 -8 -8 -8 -8 -7 -7 -7 -7 -6 -6 -6 -6 -6 -6 -5 ------- Run | Scr Mat Min Mat Min Exi Min Mat Gar Mat Fac Low Low Dat Pro Fac Ext Cet Arc Hub Fac Combat Hostiles Destroyed 202 | . 19 1 35 5 . 3 12 15 31 30 5 12 4 1 15 6 3 . 1 4 Melee 11 | . . . . . . . . . . 2 . . . . 2 5 1 . 1 . Guns 119 | . 17 1 24 3 . . 3 14 28 19 1 5 . . 4 . . . . . Cannons 26 | . . . 8 2 . 3 5 . . . . . . 1 6 1 . . . . AOE 38 | . 2 . 3 . . . 4 1 2 8 4 7 . . 1 . 2 . . 4 Classes Destroyed 17 | 2 5 . 6 . . . 1 . . 1 1 . . . . 1 . . . . Worker 19 | . 1 . 5 . . . 1 . 5 3 . . . . 2 . . . 2 . Builder 7 | . . . 1 . . . . . 2 3 . . . . . . . . 1 . Tunneler 4 | 2 . . . . . . . . 1 . . . . . 1 . . . . . Hauler 25 | . 2 . 6 . . . 1 . 5 3 . 1 . . 2 4 . . . 1 Recycler 25 | 1 1 . 1 . . . 3 . 5 7 . . . . 5 1 . . . 1 Minesweeper 3 | . . . . . . . . . . . 2 1 . . . . . . . . Mechanic 3 | . . . 1 . . . . . 1 1 . . . . . . . . . . Operator 17 | . . . 2 . . . . . 4 1 . . . . 1 1 . 8 . . Watcher 21 | . 3 . 3 . . . 1 . 3 2 . . . . 5 2 . . 1 1 Swarmer 59 | . 6 . 14 3 . . 3 . 9 8 4 3 . . 2 . 3 . . 4 Grunt 83 | . 13 1 10 1 . 2 6 11 10 15 . 9 . . 2 3 . . . . Brawler 5 | . . . 2 . . . . . 1 1 . . . . 1 . . . . . Duelist 5 | . . . 1 1 . 1 . . 1 1 . . . . . . . . . . Sentry 31 | . . . 8 . . . 1 3 10 3 . . . . 3 2 . . 1 . Hunter 6 | . . . . . . . 2 1 . . 1 . . . 2 . . . . . Programmer 8 | . . . . . . . . . . 2 . . . 1 5 . . . . . Behemoth 1 | . . . . . . . . . . . . . . . . 1 . . . . Enhanced Grunt 6 | . . . . . . . . . . . . . 4 . . . . . 2 . Thug 1 | . . . . . . . . . . . . . . . . 1 . . . . Guerrilla 1 | . . . . . . . . . . . . . . . . . . . 1 . Best Kill Streak 11 | 3 11 1 8 2 . 1 5 4 7 7 4 5 5 1 5 2 3 3 2 4 Combat Bots Only 10 | . 10 1 8 2 . 1 4 4 4 5 4 5 4 1 4 2 3 . 1 4 Max Kills in Single Turn 7 | 1 2 1 3 1 . 1 3 1 2 7 4 3 1 1 1 1 2 1 3 2 Gunslinging 1 | . . . 1 . . . . . 1 . . . . . . . . . . . Exploded 5 | . 2 . 2 . . . 2 1 1 5 4 3 . . 1 . 2 . . 2 Melee 1 | . . . . . . . . . . 1 . . . . 1 1 1 . 1 . Uniques/NPCs Destroyed 1 | . . . . . . . . . . . . . 1 . . . . . . . Data Miner (-7/Data Miner) Combat | -11 -10 -10 -9 -9 -9 -8 -8 -8 -8 -7 -7 -7 -7 -6 -6 -6 -6 -6 -6 -5 -------- Run | Scr Mat Min Mat Min Exi Min Mat Gar Mat Fac Low Low Dat Pro Fac Ext Cet Arc Hub Fac Damage Taken 14556 | . 574 118 1589 235 . 319 1417 2161 1185 2724 157 235 371 44 2097 503 93 79 342 313 Core 1547 | . 69 11 194 34 . 29 146 183 73 163 . 31 82 . 120 136 29 50 157 40 Absorbed by Shields 211 | . . . . . . . . 113 . . . . . . . 50 48 . . . Core Remaining (%) 55 | 100 . 68 . . . 35 . . 26 . . . . 60 . . . . 42 . Volleys Fired 870 | 9 87 5 143 14 . 17 45 90 139 128 14 31 9 17 60 8 1 38 12 3 Largest 2 | 2 2 2 2 2 . 2 2 2 2 2 2 2 1 2 2 1 1 1 1 1 Hottest 136 | 80 80 60 136 67 . 67 67 83 90 90 56 56 39 90 118 90 43 33 90 43 Shots Fired 1565 | 18 170 10 267 28 . 34 82 167 272 250 28 50 10 23 97 7 1 36 12 3 Gun 1338 | 18 168 10 210 18 . 17 44 161 266 247 27 43 1 6 60 . . 36 6 . Cannon 174 | . . . 46 10 . 17 34 4 . . . . . 17 33 7 . . 6 . Launcher 46 | . 2 . 4 . . . 4 2 6 3 1 7 9 . 4 . 1 . . 3 Special 7 | . . . 7 . . . . . . . . . . . . . . . . . Kinetic 1199 | . 75 5 201 28 . 34 74 161 203 233 23 40 1 10 69 . . 36 6 . Thermal 200 | 18 86 . 56 . . . . . . . . . . 13 14 7 . . 6 . Explosive 28 | . 2 . 4 . . . 4 2 6 3 1 2 . . . . 1 . . 3 Electromagnetic 138 | . 7 5 6 . . . 4 4 63 14 4 8 9 . 14 . . . . . Robot Hit Streak 30 | 13 15 9 23 11 . 10 10 30 15 17 8 7 8 2 21 3 . 5 . 1 Robot Miss Streak 12 | 1 7 1 3 5 . 12 8 3 3 3 2 6 . 2 3 1 . 2 . 3 Penetration Max 1 | . . . . . . . . 1 1 1 . 1 . . . . . 1 . . Secondary Targets 16 | . . . 7 . . . . . 5 3 . 1 . . . . . . . . Max Gunslinging Chain 1 | . . . 1 . . . . . 1 1 . 1 . . . . . . . . Shots Hit Robots 1119 | 14 100 9 172 19 . 28 59 136 181 173 16 31 5 3 95 33 2 33 5 5 Core Hits 570 | 4 48 4 76 12 . 13 46 50 88 75 9 27 6 2 46 20 3 17 15 9 Critical Hits 20 | . . . . . . . 1 4 4 . . 1 . . 2 1 . 5 1 1 Critical Kills 8 | . . . . . . . . 1 1 . . . . . 2 1 . 2 . 1 Critical Parts Destroyed 11 | . . . . . . . 1 2 3 . . 1 . . . . . 3 1 . Melee Attacks 197 | . . . . . . . . . . 4 . 6 1 . 78 43 19 14 25 7 Impact . | . . . . . . . . . . . . . . . . . . . . . Slashing 119 | . . . . . . . . . . 4 . 6 1 . 32 11 19 14 25 7 Piercing 78 | . . . . . . . . . . . . . . . 46 32 . . . . Sneak Attacks 42 | . . . . . . . . . . 2 . 2 1 . 14 13 . 7 . 3 Combat Hostiles 4 | . . . . . . . . . . . . . . . 1 3 . . . . Follow-up Attacks 6 | . . . . . . . . . . . . . . . 3 3 . . . . Damage Inflicted 30457 | 155 1113 86 2835 229 . 288 1303 2436 4187 5264 513 1456 381 98 3654 2254 354 1901 930 1020 Guns 16078 | 155 916 86 1847 76 . 41 335 2217 3929 3899 322 593 . 62 971 . . 629 . . Cannons 2396 | . . . 496 136 . 247 607 94 . . . . . 36 587 193 . . . . Explosions 5170 | . 197 . 474 . . . 353 125 215 1045 191 567 204 . 291 . 259 . 693 556 Melee 6685 | . . . . . . . . . . 281 . 296 177 . 1805 2061 95 1269 237 464 Ramming 128 | . . . 18 17 . . 8 . 43 39 . . . . . . . 3 . . Kinetic 15232 | . 421 36 1769 212 . 288 835 2217 3118 3696 255 513 . 98 1145 . . 629 . . Thermal 2057 | 155 448 . 529 . . . . 72 215 56 . 54 . . 335 193 . . . . Explosive 3251 | . 197 . 474 . . . 353 53 . 989 191 179 . . . . 259 . . 556 Electromagnetic 3104 | . 47 50 45 . . . 107 94 811 203 67 414 204 . 369 . . . 693 . Impact . | . . . . . . . . . . . . . . . . . . . . . Slashing 3267 | . . . . . . . . . . 281 . 296 177 . 235 213 95 1269 237 464 Piercing 3418 | . . . . . . . . . . . . . . . 1570 1848 . . . . Highest Corruption 8 | . . . . . . . . . . 7 7 7 7 8 6 6 6 6 . 4 Average Corruption 5 | . . . . . . . . . . 6 7 7 7 7 1 6 6 4 . 4 Corruption Purged 6 | . . . . . . . . . . . . . . . . . . 6 . . Effects 294 | . . . . . . . . . . 43 39 53 16 48 19 42 7 25 . 2 Message Errors 72 | . . . . . . . . . . 7 8 13 5 12 7 11 2 6 . 1 Matter Fused 71 | . . . . . . . . . . 8 11 15 1 15 . 12 3 6 . . Heat Flow Errors 30 | . . . . . . . . . . 1 3 7 2 5 3 6 . 2 . 1 Energy Discharges 35 | . . . . . . . . . . 4 7 4 1 7 5 6 . 1 . . Parts Rejected 2 | . . . . . . . . . . 1 . . 1 . . . . . . . Data Loss (minor) 23 | . . . . . . . . . . 6 2 4 2 3 1 1 1 3 . . Data Loss (major) 20 | . . . . . . . . . . 1 3 4 2 2 1 3 1 3 . . Misfires 15 | . . . . . . . . . . 4 5 1 1 4 . . . . . . Targeting Errors 23 | . . . . . . . . . . 11 . 5 1 . 2 2 . 2 . . Weapon Failures 3 | . . . . . . . . . . . . . . . . 1 . 2 . . Overload Shots . | . . . . . . . . . . . . . . . . . . . . . Overflow Damage 1534 | . 30 . 7 . . . 1 . 4 235 . 92 . . 220 256 40 443 63 143 Projectiles 14 | . . . 5 . . . . . . . . . . . 8 1 . . . . Explosions 284 | . 30 . 2 . . . 1 . 4 94 . 16 . . 9 . 19 . 35 74 Melee 1236 | . . . . . . . . . . 141 . 76 . . 203 255 21 443 28 69 Knockbacks 38 | . . . 1 8 . 15 14 . . . . . . . . . . . . . Impact 1 | . . . 1 . . . . . . . . . . . . . . . . . Kinetic 30 | . . . . 6 . 13 11 . . . . . . . . . . . . . Secondary 7 | . . . . 2 . 2 3 . . . . . . . . . . . . . Self-Inflicted Damage 370 | . 59 . 46 . . . 20 61 . . . . . . 18 . . 1 165 . Shots 12 | . 2 . 2 . . . 2 3 . . . . . . 1 . . . 2 . Rammed 12 | . . . 2 1 . . 1 . 4 3 . . . . . . . 1 . . Targets Rammed 14 | . . . 2 1 . . 1 . 4 5 . . . . . . . 1 . . Kicked . | . . . . . . . . . . . . . . . . . . . . . Crushed 2 | . . . . . . . . . . 2 . . . . . . . . . . Highest Temperature 426 | 108 426 67 374 54 . 81 180 206 241 181 258 276 172 248 263 238 9 267 130 136 Average Temperature 53 | 47 122 34 67 23 . 27 47 71 46 47 63 69 50 79 24 47 3 58 32 82 Received Heat Transfer 4438 | . 213 66 411 . . 108 558 957 414 1116 81 117 54 . 198 103 . 9 24 9 Effects 14 | . 4 . 5 . . . . 1 . . 1 3 . . . . . . . . Shutdowns 1 | . 1 . . . . . . . . . . . . . . . . . . . Energy Bleed 4 | . 1 . 1 . . . . 1 . . 1 . . . . . . . . . Interference 7 | . 1 . 3 . . . . . . . . 3 . . . . . . . . Matter Decay 1 | . . . 1 . . . . . . . . . . . . . . . . . Damage (minor) 1 | . 1 . . . . . . . . . . . . . . . . . . . Siege Activations . | . . . . . . . . . . . . . . . . . . . . . Robots Corrupted 10 | . . . . . . . . . 1 1 . . 4 . 2 . . . 2 . Combat Hostiles 8 | . . . . . . . . . 1 1 . . 4 . 2 . . . . . Parts Fried 26 | . . . . . . . 2 . 4 3 . 2 8 . 4 . . . 3 . Impact Corruptions . | . . . . . . . . . . . . . . . . . . . . . Robots Melted . | . . . . . . . . . . . . . . . . . . . . . Combat Hostiles . | . . . . . . . . . . . . . . . . . . . . . Parts Melted 6 | 1 . . 2 . . . . . . . . . . . 1 2 . . . . Heat Transferred 3076 | 350 975 . 926 . . . . 100 300 . . 50 . . 250 125 . . . . Parts Sabotaged . | . . . . . . . . . . . . . . . . . . . . . Parts Stolen . | . . . . . . . . . . . . . . . . . . . . . Parts Stripped . | . . . . . . . . . . . . . . . . . . . . . Power Chain Reactions 9 | . . . . . . . . 1 5 1 . 1 . . 1 . . . . . Missiles Intercepted . | . . . . . . . . . . . . . . . . . . . . . Alert | -11 -10 -10 -9 -9 -9 -8 -8 -8 -8 -7 -7 -7 -7 -6 -6 -6 -6 -6 -6 -5 ------- Run | Scr Mat Min Mat Min Exi Min Mat Gar Mat Fac Low Low Dat Pro Fac Ext Cet Arc Hub Fac Peak Influence 1003 | 15 475 106 544 242 . 70 368 690 914 789 . . . . 747 672 807 550 1003 788 Initial 462 | . 9 106 22 192 . . 27 152 336 382 . . . . . 306 336 322 81 462 Average 356 | 6 278 76 352 123 . 9 180 377 698 508 . . . . 191 219 737 392 399 552 Maximum Alert Level 3 | . 2 . 2 1 . . 1 2 3 3 . . . . 3 2 3 2 3 3 Low Security (%) 31 | 100 32 100 15 69 . 100 62 8 . . . . . . 65 58 . . 13 . Level 1 24 | . 46 . 31 30 . . 37 44 3 21 . . . . 26 14 6 62 47 . Level 2 30 | . 21 . 53 . . . . 47 33 64 . . . . 5 27 10 37 25 75 Level 3 12 | . . . . . . . . . 63 13 . . . . 3 . 83 . 14 24 Level 4 . | . . . . . . . . . . . . . . . . . . . . . Level 5 . | . . . . . . . . . . . . . . . . . . . . . High Security . | . . . . . . . . . . . . . . . . . . . . . Max Security . | . . . . . . . . . . . . . . . . . . . . . Squads Dispatched 49 | . 6 . 5 . . . 5 . 7 11 . . . . 9 2 1 . 2 1 Investigation 20 | . 5 . 2 . . . . . 2 3 . . . . 5 1 1 . . 1 Extermination 7 | . . . . . . . . . . 3 . . . . 4 . . . . . Reinforcement 15 | . 1 . 2 . . . 4 . 2 3 . . . . . 1 . . 2 . Assault 4 | . . . 1 . . . . . 2 1 . . . . . . . . . . Garrison 3 | . . . . . . . 1 . 1 1 . . . . . . . . . . Intercept . | . . . . . . . . . . . . . . . . . . . . . Construction Impeded 5 | . . . . . . . 2 . 1 1 . . . . . . . . 1 . Haulers Reinforced . | . . . . . . . . . . . . . . . . . . . . . Stealth | -11 -10 -10 -9 -9 -9 -8 -8 -8 -8 -7 -7 -7 -7 -6 -6 -6 -6 -6 -6 -5 --------- Run | Scr Mat Min Mat Min Exi Min Mat Gar Mat Fac Low Low Dat Pro Fac Ext Cet Arc Hub Fac Distress Signals 18 | . 2 . 2 . . . 5 . 1 . . . . . 2 3 1 . 1 1 Communications Jammed . | . . . . . . . . . . . . . . . . . . . . . Distress Signals . | . . . . . . . . . . . . . . . . . . . . . Times Spotted 397 | . 35 2 55 7 . 4 31 22 57 39 4 15 4 1 31 30 10 25 11 14 Peak Tracking Total 11 | . 9 2 8 3 . 3 11 6 6 5 3 5 3 1 5 5 5 3 2 8 Tactical Retreats 35 | . 4 . 2 1 . 1 . 4 7 . . 1 . . 8 1 . . 1 5 Traps | -11 -10 -10 -9 -9 -9 -8 -8 -8 -8 -7 -7 -7 -7 -6 -6 -6 -6 -6 -6 -5 ------- Run | Scr Mat Min Mat Min Exi Min Mat Gar Mat Fac Low Low Dat Pro Fac Ext Cet Arc Hub Fac Traps Triggered 25 | . 2 . 2 . . . . 3 . 2 . . 2 . 4 6 . . 2 2 Indirectly 4 | . . . . . . . . . . . . . 2 . . . . . 2 . Trap Hack Attempts . | . . . . . . . . . . . . . . . . . . . . . Triggered . | . . . . . . . . . . . . . . . . . . . . . Disarmed . | . . . . . . . . . . . . . . . . . . . . . Reprogrammed . | . . . . . . . . . . . . . . . . . . . . . Reused 1 | . . . . . . . . . . . 1 . . . . . . . . . Traps Extracted . | . . . . . . . . . . . . . . . . . . . . . Installed 4 | . . . . . . . . . . . 2 . 2 . . . . . . . Triggered 3 | . . . . . . . . . 1 . 1 1 . . . . . . . . Exploded 1 | . . . . . . . . . . 1 . . . . . . . . . . Machines | -11 -10 -10 -9 -9 -9 -8 -8 -8 -8 -7 -7 -7 -7 -6 -6 -6 -6 -6 -6 -5 ---------- Run | Scr Mat Min Mat Min Exi Min Mat Gar Mat Fac Low Low Dat Pro Fac Ext Cet Arc Hub Fac Machines Disabled 50 | . 1 . 1 . . 1 2 1 6 14 . . 1 . 2 1 1 4 14 1 Max in Single Turn 7 | . 1 . 1 . . 1 2 1 1 6 . . 1 . 1 . 1 1 7 1 Garrison Access 2 | . . . . . . . . . . 1 . . . . 1 . . . . . Garrison Relay 1 | . . . . . . . . 1 . . . . . . . . . . . . Network Hub 2 | . . . . . . . . . . . . . . . . . . . 2 . Machines Sabotaged . | . . . . . . . . . . . . . . . . . . . . . Garrisons Compromised . | . . . . . . . . . . . . . . . . . . . . . Overloaded Fab Kills . | . . . . . . . . . . . . . . . . . . . . . Fab Network Shutdowns 1 | . . . . . . . . . . . . . . . 1 . . . . . Hacking | -11 -10 -10 -9 -9 -9 -8 -8 -8 -8 -7 -7 -7 -7 -6 -6 -6 -6 -6 -6 -5 --------- Run | Scr Mat Min Mat Min Exi Min Mat Gar Mat Fac Low Low Dat Pro Fac Ext Cet Arc Hub Fac Machines Accessed 84 | . 9 . 12 . 1 . 2 . 12 8 . . 4 . 15 13 3 . 4 1 Terminals 61 | . 7 . 11 . . . 1 . 8 6 . . . . 8 13 3 . 4 . Fabricators 5 | . . . . . . . . . . 1 . . . . 3 . . . . 1 Repair Stations 2 | . . . . . . . . . 1 . . . . . 1 . . . . . Recycling Units 5 | . 2 . 1 . . . . . 1 . . . . . 1 . . . . . Scanalyzers 3 | . . . . . . . . . 2 . . . . . 1 . . . . . Garrison Access 3 | . . . . . . . 1 . . 1 . . . . 1 . . . . . Total Hacks 300 | . 29 . 48 . 4 . 5 . 39 21 . . 26 . 67 37 8 . 14 2 Successful 182 | . 13 . 22 . 4 . 5 . 24 10 . . 26 . 40 25 3 . 8 2 Failed 115 | . 15 . 25 . . . . . 15 11 . . . . 27 11 5 . 6 . Catastrophic 13 | . 1 . 2 . . . . . 1 2 . . . . 5 1 . . 1 . Database Lockouts 3 | . 1 . 1 . . . . . . . . . . . . 1 . . . . Manual 138 | . 20 . 25 . . . 2 . 16 10 . . . . 36 17 1 . 10 1 Terminals 212 | . 24 . 45 . . . 4 . 23 17 . . . . 40 37 8 . 14 . Fabricators 17 | . . . . . . . . . . 2 . . . . 13 . . . . 2 Repair Stations 7 | . . . . . . . . . 5 . . . . . 2 . . . . . Recycling Units 16 | . 5 . 3 . . . . . 4 . . . . . 4 . . . . . Scanalyzers 11 | . . . . . . . . . 7 . . . . . 4 . . . . . Garrison Access 7 | . . . . . . . 1 . . 2 . . . . 4 . . . . . Terminal Hacks 111 | . 8 . 16 . 4 . 2 . 8 4 . . 26 . 13 21 3 . 6 . Record 18 | . . . . . 4 . . . . . . . 11 . . . 3 . . . Part Schematic 15 | . . . 1 . . . . . . 2 . . 6 . 5 1 . . . . Robot Schematic 7 | . . . 1 . . . . . . . . . 6 . . . . . . . Robot Analysis 5 | . 2 . 2 . . . . . 1 . . . . . . . . . . . Prototype ID Bank 8 | . 1 . 2 . . . 1 . . . . . 3 . 1 . . . . . Open Door 9 | . . . . . . . . . . . . . . . . 9 . . . . Level Access Points 1 | . . . . . . . . . . . . . . . . . . . 1 . Branch Access Points 2 | . 1 . . . . . . . . 1 . . . . . . . . . . Machine Index 1 | . . . . . . . . . . . . . . . . . . . 1 . Terminal Index 3 | . . . 1 . . . . . 1 . . . . . 1 . . . . . Alert Level 3 | . . . . . . . . . . . . . . . . 1 . . 2 . Unreport Threat 11 | . . . 1 . . . . . 2 1 . . . . 2 3 . . 2 . Locate Traps 8 | . 2 . 2 . . . . . . . . . . . 1 3 . . . . Dispatch Records 1 | . . . . . . . . . . . . . . . . 1 . . . . Transport Status 2 | . . . 2 . . . . . . . . . . . . . . . . . Recall Extermination 1 | . . . . . . . . . . . . . . . 1 . . . . . Recall Reinforcements 1 | . . . . . . . . . . . . . . . . 1 . . . . Hauler Manifests 4 | . 1 . 2 . . . 1 . . . . . . . . . . . . . Registered Components 4 | . . . 1 . . . . . 1 . . . . . 1 1 . . . . Zone Layout 7 | . 1 . 1 . . . . . 3 . . . . . 1 1 . . . . Fabricator Hacks 12 | . . . . . . . . . . 2 . . . . 9 . . . . 1 Load Schematic 6 | . . . . . . . . . . 1 . . . . 4 . . . . 1 Build 6 | . . . . . . . . . . 1 . . . . 5 . . . . . Repair Station Hacks 6 | . . . . . . . . . 4 . . . . . 2 . . . . . Scan Component 3 | . . . . . . . . . 2 . . . . . 1 . . . . . Repair 3 | . . . . . . . . . 2 . . . . . 1 . . . . . Recycling Unit Hacks 5 | . 1 . 1 . . . . . 1 . . . . . 2 . . . . . Process 1 | . . . . . . . . . . . . . . . 1 . . . . . Retrieve Matter 1 | . . . . . . . . . . . . . . . 1 . . . . . Retrieve Components 3 | . 1 . 1 . . . . . 1 . . . . . . . . . . . Scanalyzer 9 | . . . . . . . . . 6 . . . . . 3 . . . . . Insert Component 6 | . . . . . . . . . 3 . . . . . 3 . . . . . Analyze 3 | . . . . . . . . . 3 . . . . . . . . . . . Garrison Access Hacks 3 | . . . . . . . 1 . . 1 . . . . 1 . . . . . Unlock Access 1 | . . . . . . . 1 . . . . . . . . . . . . . Seal Access 2 | . . . . . . . . . . 1 . . . . 1 . . . . . Unauthorized Hacks 36 | . 4 . 5 . . . 2 . 5 3 . . . . 10 4 . . 2 1 Terminals 27 | . 2 . 4 . . . 2 . 4 3 . . . . 6 4 . . 2 . Track 6 | . 1 . 1 . . . 1 . 2 . . . . . . . . . 1 . Assimilate 5 | . . . . . . . . . 1 2 . . . . 1 1 . . . . Botnet 12 | . . . 3 . . . . . 1 1 . . . . 5 1 . . 1 . Disrupt 2 | . . . . . . . . . . . . . . . . 2 . . . . Operators 2 | . 1 . . . . . 1 . . . . . . . . . . . . . Fabricators 3 | . . . . . . . . . . . . . . . 2 . . . . 1 Report 2 | . . . . . . . . . . . . . . . 1 . . . . 1 Siphon 1 | . . . . . . . . . . . . . . . 1 . . . . . Repair Stations . | . . . . . . . . . . . . . . . . . . . . . Recycling Units 4 | . 2 . 1 . . . . . 1 . . . . . . . . . . . Tunnel 4 | . 2 . 1 . . . . . 1 . . . . . . . . . . . Scanalyzers . | . . . . . . . . . . . . . . . . . . . . . Garrison Access 2 | . . . . . . . . . . . . . . . 2 . . . . . Reprogram 2 | . . . . . . . . . . . . . . . 2 . . . . . Data Cores Recovered 2 | . . . . . . . . . 2 . . . . . . . . . . . Used 1 | . . . . . . . . . 1 . . . . . . . . . . . Hacking Detections 58 | . 8 . 11 . . . 1 . 12 7 . . . . 12 3 1 . 3 . Full Trace Events 9 | . 1 . . . . . . . . 2 . . . . 5 . 1 . . . Feedback Events . | . . . . . . . . . . . . . . . . . . . . . Feedback Blocked . | . . . . . . . . . . . . . . . . . . . . . Robot Schematics Acquired 7 | . . . 1 . . . . . . . . . 6 . . . . . . . Robots Built . | . . . . . . . . . . . . . . . . . . . . . Matter . | . . . . . . . . . . . . . . . . . . . . . Time . | . . . . . . . . . . . . . . . . . . . . . Total Robot Build Rating . | . . . . . . . . . . . . . . . . . . . . . Part Schematics Acquired 17 | . . . 1 . . . . . 2 2 . . 6 . 5 1 . . . . Parts Built 7 | . . . . . . . . . . 1 . . . . 6 . . . . . Matter 1323 | . . . . . . . . . . 285 . . . . 1038 . . . . . Time 400 | . . . . . . . . . . 76 . . . . 324 . . . . . Total Part Build Rating 39 | . . . . . . . . . . 5 . . . . 34 . . . . . Parts Repaired 3 | . . . . . . . . . 2 . . . . . 1 . . . . . Time 175 | . . . . . . . . . 150 . . . . . 25 . . . . . Parts Recycled . | . . . . . . . . . . . . . . . . . . . . . Recycled Matter 5 | . . . . . . . . . . . . . . . 5 . . . . . Retrieved Matter 5 | . . . . . . . . . . . . . . . 5 . . . . . Retrieved Components 22 | . 7 . 5 . . . . . 10 . . . . . . . . . . . Parts Scanalyzed 3 | . . . . . . . . . 3 . . . . . . . . . . . Part Schematics Acquired 2 | . . . . . . . . . 2 . . . . . . . . . . . Parts Damaged 1 | . . . . . . . . . 1 . . . . . . . . . . . Bothacking | -11 -10 -10 -9 -9 -9 -8 -8 -8 -8 -7 -7 -7 -7 -6 -6 -6 -6 -6 -6 -5 ------------ Run | Scr Mat Min Mat Min Exi Min Mat Gar Mat Fac Low Low Dat Pro Fac Ext Cet Arc Hub Fac Used RIF Installer . | . . . . . . . . . . . . . . . . . . . . . Robots Hacked . | . . . . . . . . . . . . . . . . . . . . . Non-combat . | . . . . . . . . . . . . . . . . . . . . . Combat . | . . . . . . . . . . . . . . . . . . . . . Robot Hacks Applied . | . . . . . . . . . . . . . . . . . . . . . Relay Couplers Released 3 | . . . . . . . . 3 . . . . . . . . . . . . Machine Destruction 3 | . . . . . . . . 3 . . . . . . . . . . . . Robots Rewired 13 | . . . . . . . . . . . . . . . . 13 . . . . Allies Hacked . | . . . . . . . . . . . . . . . . . . . . . Hacks Repelled . | . . . . . . . . . . . . . . . . . . . . . Allies | -11 -10 -10 -9 -9 -9 -8 -8 -8 -8 -7 -7 -7 -7 -6 -6 -6 -6 -6 -6 -5 -------- Run | Scr Mat Min Mat Min Exi Min Mat Gar Mat Fac Low Low Dat Pro Fac Ext Cet Arc Hub Fac Total Allies 43 | . . 3 . . . . . . 1 1 . . . . 7 26 5 . . . Largest Group 22 | . . 3 3 . . . . . 1 1 . . . . 7 20 22 20 13 . Highest-Rated Group 1089 | . . 40 40 . . . . . 10 10 . . . . 184 708 1089 1038 726 . Highest-Rated Ally 156 | . . 16 16 . . . . . 10 10 . . . . 29 156 156 149 94 . Total Orders 13 | . . . . . . . . . . . . . . . 1 8 1 2 1 . STAY 8 | . . . . . . . . . . . . . . . 1 4 1 1 1 . FOLLOW 5 | . . . . . . . . . . . . . . . . 4 . 1 . . Ally Attacks 392 | . . 6 38 . . . . . . . . . . . 6 176 33 34 99 . Total Damage 7798 | . . 78 371 . . . . . . . . . . . 115 3048 718 767 2701 . Kills 60 | . . 1 3 . . . . . . . . . . . 1 18 9 6 22 . Allies Corrupted 2 | . . . . . . . . . . . . . . . . . . . 2 . Allies Melted 1 | . . 1 . . . . . . . . . . . . . . . . . . Intel | -11 -10 -10 -9 -9 -9 -8 -8 -8 -8 -7 -7 -7 -7 -6 -6 -6 -6 -6 -6 -5 ------- Run | Scr Mat Min Mat Min Exi Min Mat Gar Mat Fac Low Low Dat Pro Fac Ext Cet Arc Hub Fac Robot Analysis Total 5 | . 2 . 2 . . . . . 1 . . . . . . . . . . . Derelict Logs Recovered 6 | . . . . 1 . . . . . . 1 1 . 3 . . . . . . Drone Launches . | . . . . . . . . . . . . . . . . . . . . . Drone Recoveries . | . . . . . . . . . . . . . . . . . . . . . Exploration | -11 -10 -10 -9 -9 -9 -8 -8 -8 -8 -7 -7 -7 -7 -6 -6 -6 -6 -6 -6 -5 ------------- Run | Scr Mat Min Mat Min Exi Min Mat Gar Mat Fac Low Low Dat Pro Fac Ext Cet Arc Hub Fac Turns Passed 25545 | 130 1658 748 2997 1060 646 482 480 902 2867 2029 1502 1699 462 1662 2485 1676 270 1024 446 320 Spaces Moved 15686 | 71 851 416 1485 559 357 230 167 322 1292 833 812 821 245 1023 2540 1750 283 478 601 550 Core 140 | 20 . . . . . . . . . . . . . . 1 . . 119 . . Treads 7823 | 51 851 416 1485 559 357 230 167 13 1081 833 812 821 147 . . . . . . . Legs 2035 | . . . . . . . . 232 . . . . 98 1023 682 . . . . . Wheels 288 | . . . . . . . . 77 211 . . . . . . . . . . . Hover . | . . . . . . . . . . . . . . . . . . . . . Flight 5400 | . . . . . . . . . . . . . . . 1857 1750 283 359 601 550 Fastest Speed 24 | 50 160 160 160 180 180 180 180 140 140 165 170 170 150 150 24 24 24 24 24 25 Average Speed 119 | 129 160 160 165 180 180 180 181 172 165 168 170 170 163 150 52 25 24 171 25 34 Slowest Speed 550 | 160 160 160 180 180 180 180 220 300 180 192 170 170 175 150 550 99 98 550 98 98 Overloaded Moves . | . . . . . . . . . . . . . . . . . . . . . Propulsion Burnouts . | . . . . . . . . . . . . . . . . . . . . . Robots Hopped 26 | . . . . . . . . . . . . . . . 2 10 2 . 5 7 Cave-ins Triggered . | . . . . . . . . . . . . . . . . . . . . . Exploration Rate (%) 62 | 5 97 68 95 91 64 58 19 41 82 22 71 74 77 94 41 97 73 81 39 16 Regions Visited 20 Branch Regions 12 Pre-discovered Areas 7 | . 2 . 1 1 1 . . . 1 . . . 1 . . . . . . . Known Exits Taken 12 | . 1 . . . . . 1 . . 1 1 1 1 1 1 1 1 1 1 . Unknown Exits Taken 7 | 1 . 1 1 1 1 1 . . 1 . . . . . . . . . . . Scrap Searched 8 | . . 2 . 1 . 1 . . . . 1 2 . 1 . . . . . . Spaces Dug 156 | . 9 . 6 . . . . . 19 . . 36 . 8 35 7 10 2 21 3 Terrain Destroyed 803 | . 58 . 28 . . . 22 27 92 40 14 40 . 13 46 9 28 7 353 26 Melee 71 | . . . . . . . . . . . . 1 . . 30 7 10 2 18 3 Projectile 60 | . . . 6 . . . . 8 6 2 . 3 . 13 11 2 . 5 4 . AOE 672 | . 58 . 22 . . . 22 19 86 38 14 36 . . 5 . 18 . 331 23 Terrain Rammed . | . . . . . . . . . . . . . . . . . . . . . Walls Destroyed . | . . . . . . . . . . . . . . . . . . . . . Machines Disabled . | . . . . . . . . . . . . . . . . . . . . . Actions | -11 -10 -10 -9 -9 -9 -8 -8 -8 -8 -7 -7 -7 -7 -6 -6 -6 -6 -6 -6 -5 --------- Run | Scr Mat Min Mat Min Exi Min Mat Gar Mat Fac Low Low Dat Pro Fac Ext Cet Arc Hub Fac Total 20669 | 89 990 490 1791 585 361 265 257 500 1758 1222 910 1065 298 1128 3501 2886 451 618 842 662 Wait 2923 | . 17 68 14 9 . 17 22 33 202 142 69 161 . 80 691 947 132 71 167 81 Move 15624 | 70 850 415 1484 558 356 229 167 321 1291 832 811 820 244 1022 2535 1733 279 477 594 536 Hop 17 | . . . . . . . . . . . . . . . 2 6 1 . 1 7 Pick Up 210 | 4 14 1 45 1 2 . 4 18 28 21 4 3 10 2 30 9 1 1 6 6 Fast Attach 109 | 6 2 . 7 . . . . 11 9 17 . 11 5 . 14 9 6 6 1 5 Attach 82 | . 4 1 7 1 . . 8 14 2 11 1 4 6 . 10 1 . 1 7 4 Detach 19 | . . . . . . . . 1 1 1 . 2 3 . . . 2 . 6 3 Swap 215 | . 10 . 34 . 1 1 10 3 32 31 5 13 5 6 33 14 3 1 13 . Drop 281 | . 6 . 55 1 2 1 . 9 50 30 4 14 13 1 41 19 7 8 10 10 Fire 870 | 9 87 5 143 14 . 17 45 90 139 128 14 31 9 17 60 8 1 38 12 3 Melee 179 | . . . . . . . . . . 4 . 6 1 . 67 36 19 14 25 7 Ram 1 | . . . . . . . . . . . . . . . . . . 1 . . Kick . | . . . . . . . . . . . . . . . . . . . . . Crush 13 | . . . 2 1 . . 1 . 4 5 . . . . . . . . . . Escape Stasis 85 | . . . . . . . . . . . . . . . 18 67 . . . . Rewire 37 | . . . . . . . . . . . . . . . . 37 . . . . Trap 4 | . . . . . . . . . . . 2 . 2 . . . . . . . Miscellaneous . | . . . . . . . . . . . . . . . . . . . . . Route ------- -11/Scrapyard -10/Materials (discovered 4 exits: *Mat x3 / *Min) -10/Mines -9/Materials (discovered 4 exits: *Mat x3 / [*Min]) -9/Mines (discovered 3 exits: *Mat x2 / *Exi) -9/Exiles -8/Mines -8/Materials -8/Garrison -8/Materials (discovered 3 exits: *Fac x2 / [*Sto]) -7/Factory (discovered 2 exits: *Low x2) -7/Lower Caves -7/Lower Caves -7/Data Miner -6/Proximity Caves -6/Factory (discovered 5 exits: *Fac x3 / *Low / *Ext) -6/Extension (discovered 2 exits: *Fac / *Cet) -6/Cetus -6/Archives (discovered 3 exits: *Fac / *Hub x2) -6/Hub_04(d) (discovered 4 exits: *Fac x4) -5/Factory (discovered 1 exit: *Upp) History --------- Turn | Location | Event 4 | -11/Scrapyard | Discovered new exit (range 16) 131 | -11/Scrapyard | Entered Materials 239 | -10/Materials | Central database locked down 303 | -10/Materials | Build established: Mutant 360 | -10/Materials | Identified exit to Mines 719 | -10/Materials | Discovered new exit (range 15) 732 | -10/Materials | Destroyed 10 combat bots 779 | -10/Materials | Lost 3 parts (1p1n1w) 1353 | -10/Materials | Discovered new exit (range 15) 1574 | -10/Materials | Discovered new exit (range 10) 1789 | -10/Materials | Entered Mines 1793 | -10/Mines | Met a Derelict bent on vengeance 1932 | -10/Mines | Discovered new exit (range 5) 2045 | -10/Mines | Assembled infested the area 2230 | -10/Mines | Assisted by bots powering up and referring to "LRC-V3" 2537 | -10/Mines | Entered Materials 2537 | -9/Materials | Accompanied by 3 allies 2537 | -9/Materials | Evolved 2 slots: Propulsion x1, Utility x1 2907 | -9/Materials | Discovered new exit (range 13) 3079 | -9/Materials | Build established: Scavenger-Mutant 3192 | -9/Materials | Discovered new exit (range 15) 3525 | -9/Materials | Central database locked down 3628 | -9/Materials | Destroyed 8 combat bots 3737 | -9/Materials | First assault squad dispatched 3786 | -9/Materials | Discovered new exit (range 15) 4262 | -9/Materials | Discovered new exit (range 14) 4321 | -9/Materials | Build established: Hauler-Mutant 5145 | -9/Materials | Build established: Scavenger-Mutant 5534 | -9/Materials | Entered Mines 5600 | -9/Mines | Core integrity fell below 50% 5941 | -9/Mines | Found a damaged Exp. Sensor Array with a note attached 5946 | -9/Mines | Found Prototype Device 6114 | -9/Mines | Discovered new exit (range 9) 6213 | -9/Mines | Discovered new exit (range 6) 6220 | -9/Mines | Received a Rocket Launcher from a helpful Derelict 6251 | -9/Mines | Build established: Hauler-Mutant 6587 | -9/Mines | Deemed a non-threat by the Exiles lab entrance 6587 | -9/Mines | Discovered new exit (range 5) 6594 | -9/Mines | Entered Exiles 6646 | -9/Exiles | Met 8R-AWN 6671 | -9/Exiles | Met EX-HEX 6740 | -9/Exiles | Met EX-DEC 6754 | -9/Exiles | Learned location of Zion (-6) 6997 | -9/Exiles | Discovered new exit (range 11) 7085 | -9/Exiles | Met EX-BIN 7240 | -9/Exiles | Entered Mines 7598 | -8/Mines | Discovered new exit (range 12) 7722 | -8/Mines | Entered Materials 7722 | -8/Materials | Evolved 2 slots: Utility x2 8097 | -8/Materials | Garrison activated, responded to threat 8202 | -8/Materials | Identified exit to Garrison 8202 | -8/Materials | Entered Garrison 8218 | -8/Garrison | Lost 8 parts (1p4n2u1w) 8284 | -8/Garrison | Lost 5 parts (2u3w) 8467 | -8/Garrison | Core integrity fell below 50% 8628 | -8/Garrison | Triggered checkpoint 8652 | -8/Garrison | Triggered checkpoint 8705 | -8/Garrison | Lost 6 parts (1p2n2u1w) 8808 | -8/Garrison | Triggered checkpoint 8998 | -8/Garrison | Garrison Relay disabled 9010 | -8/Garrison | Build established: Scavenger-Mutant 9066 | -8/Garrison | Discovered new exit (range 15) 9104 | -8/Garrison | Entered Materials 9359 | -8/Materials | Discovered new exit (range 14) 9469 | -8/Materials | Discovered new exit (range 12) 10138 | -8/Materials | Discovered new exit (range 16) 10235 | -8/Materials | Build established: Hauler-Mutant 10251 | -8/Materials | Identified Exp. Sensor Array 10822 | -8/Materials | Repaired Broken Exp. Sensor Array? 11183 | -8/Materials | Garrison activated, responded to threat 11504 | -8/Materials | First assault squad dispatched 11768 | -8/Materials | Repaired Rigged Lgt. Fission Core 11971 | -8/Materials | Entered Factory 11971 | -7/Factory | Evolved 2 slots: Utility x2 12049 | -7/Factory | Garrison activated, responded to threat 12379 | -7/Factory | Fabricated Exp. Sensor Array (x1) 12923 | -7/Factory | Lost 5 parts (3n2u) 12971 | -7/Factory | Identified exit to Lower Caves 13971 | -7/Factory | First assault squad dispatched 14000 | -7/Factory | Entered Lower Caves 14724 | -7/Lower Caves | Attracted the attention of an 0b10 checkpoint 15398 | -7/Lower Caves | Discovered new exit (range 8) 15408 | -7/Lower Caves | Identified exit to Lower Caves 15502 | -7/Lower Caves | Entered another Lower Caves area 15564 | -7/Lower Caves | Encountered a Warlord checkpoint 16130 | -7/Lower Caves | Learned location of 1 exit from Factory 16957 | -7/Lower Caves | Discovered new exit (range 9) 16968 | -7/Lower Caves | Identified exit to Data Miner 17201 | -7/Lower Caves | Entered Data Miner 17202 | -7/Data Miner | Discovered new exit (range 6) 17235 | -7/Data Miner | Met Data Miner 17264 | -7/Data Miner | Acquired the access code to Warlord's prototype stash 17264 | -7/Data Miner | Learned location of Section 7 (-3) 17293 | -7/Data Miner | Received God Mode back door access code from Data Miner 17351 | -7/Data Miner | Destroyed Data Miner 17355 | -7/Data Miner | Found Prototype Hackware 17358 | -7/Data Miner | Found Prototype Hackware 17366 | -7/Data Miner | Data Conduit disabled 17661 | -7/Data Miner | Identified exit to Proximity Caves 17663 | -7/Data Miner | Entered Proximity Caves 17828 | -6/Proximity Caves | Spotted B-75 Beast 18345 | -6/Proximity Caves | Learned 4 Factory zone layouts 18404 | -6/Proximity Caves | Received a Behemoth hack from an annoying Tinkerer 18727 | -6/Proximity Caves | Discovered new exit (range 13) 18737 | -6/Proximity Caves | Learned location of 1 exit from Factory 18757 | -6/Proximity Caves | Identified exit to Factory 19106 | -6/Proximity Caves | Learned Factory terminal intel 19325 | -6/Proximity Caves | Entered Factory 19325 | -6/Factory | Evolved 2 slots: Propulsion x2 19326 | -6/Factory | Identified exit to Factory 19328 | -6/Factory | Loaded intel: 21 terminal locations 19513 | -6/Factory | Identified System Mapper 19513 | -6/Factory | Identified Ghost Barrier 20556 | -6/Factory | Discovered new exit (range 15) 20583 | -6/Factory | Identified exit to Lower Caves 20929 | -6/Factory | Build established: Hacker-Sprinter 21162 | -6/Factory | Repaired Imp. Flight Unit 21364 | -6/Factory | Fabricated Adv. Hacking Suite? 21386 | -6/Factory | Fabricated Adv. Hacking Suite (x1) 21428 | -6/Factory | Fabricated Adv. Hacking Suite? 21448 | -6/Factory | Fabricated Adv. Hacking Suite? 21587 | -6/Factory | Discovered new exit (range 16) 21592 | -6/Factory | Local fabrication network quarantined 21628 | -6/Factory | Fabricated Nuclear Pulse Thruster? 21809 | -6/Factory | Identified exit to Extension 21810 | -6/Factory | Entered Extension 21810 | -6/Extension | Accompanied by 6 allies 21918 | -6/Extension | Rescued a captive Derelict 22081 | -6/Extension | Spotted B-75 Beast 22089 | -6/Extension | Allies destroyed B-75 Beast 22095 | -6/Extension | Spotted B-75 Beast 22284 | -6/Extension | Rescued a captive Derelict 22329 | -6/Extension | Central database locked down 22332 | -6/Extension | Rescued a captive Derelict 22332 | -6/Extension | Rescued a captive Derelict 22399 | -6/Extension | Rescued a captive Derelict 22533 | -6/Extension | Rescued A7 22839 | -6/Extension | Destroyed B-75 Beast 22861 | -6/Extension | Rescued a captive Derelict 22864 | -6/Extension | Rescued a captive Derelict 22865 | -6/Extension | Rescued a captive Derelict 22865 | -6/Extension | Rescued a captive Derelict 23025 | -6/Extension | Rescued a captive Derelict 23026 | -6/Extension | Rescued a captive Derelict 23080 | -6/Extension | Discovered exit to Factory (range 10) 23082 | -6/Extension | Discovered new exit (range 6) 23402 | -6/Extension | Identified exit to Cetus 23486 | -6/Extension | Entered Cetus 23486 | -6/Cetus | Accompanied by 18 allies (A7) 23491 | -6/Cetus | Acquired a Cetus Manufacturing Module code from A7 23497 | -6/Cetus | Spotted Cetus Guard 23497 | -6/Cetus | Spotted Cetus Guard 23497 | -6/Cetus | Spotted Cetus Guard 23497 | -6/Cetus | Spotted Cetus Guard 23509 | -6/Cetus | Allies destroyed Cetus Guard 23513 | -6/Cetus | Started Cetus Manufacturing Module 23538 | -6/Cetus | Manufactured an Enhanced Grunt 23545 | -6/Cetus | Escorted A7 to Cetus Mainframe 23563 | -6/Cetus | Manufactured an Enhanced Grunt 23588 | -6/Cetus | Manufactured an Enhanced Grunt 23613 | -6/Cetus | Manufactured an Enhanced Grunt 23638 | -6/Cetus | Manufactured an Enhanced Grunt 23654 | -6/Cetus | Found a strange terminal 23679 | -6/Cetus | Discovered new exit (range 15) 23694 | -6/Cetus | Identified exit to Archives 23756 | -6/Cetus | Entered Archives 23756 | -6/Archives | Accompanied by 20 allies (A7) 23761 | -6/Archives | Received a hacking code to weaken MAIN.C 23773 | -6/Archives | Discovered exit to Factory (range 14) 23779 | -6/Archives | Discovered new exit (range 13) 23821 | -6/Archives | Build established: Commander-Sprinter 24127 | -6/Archives | Build established: Commander-Mutant 24174 | -6/Archives | Discovered new exit (range 15) 24719 | -6/Archives | Identified exit to Hub_04(d) 24780 | -6/Archives | Entered Hub_04(d) 24780 | -6/Hub_04(d) | Accompanied by 13 allies 24790 | -6/Hub_04(d) | Discovered exit to Factory (range 10) 25166 | -6/Hub_04(d) | Network Hub disabled 25167 | -6/Hub_04(d) | Core integrity fell below 50% 25192 | -6/Hub_04(d) | Network Hub disabled 25226 | -6/Hub_04(d) | Spotted Lightning 25226 | -6/Hub_04(d) | Spotted Lightning 25226 | -6/Hub_04(d) | Spotted Lightning 25226 | -6/Hub_04(d) | Entered Factory 25226 | -5/Factory | Evolved 2 slots: Power x1, Utility x1 25227 | -5/Factory | Identified exit to Upper Caves 25546 | -5/Factory | Self-destructed Last Messages --------------- 25448_ K-01 Serf cleans the Pressure Siphon. 25460_ Dropped Imp. Energy Well. 25461_ Extracted 139 energy. 25462_ Acquired Imp. Energy Well. 25463_ Nuclear Pulse Thruster destroyed. 25464_ Destroyed Lgt. Nuclear Core. 25466_ S-27 Virus destroyed. 25493_ Sneak attack on K-01 Serf. 25493_ Destroyed Unknown Engine. 25493_ Destroyed Wheel. 25523_ Drone sends a signal. 25524_ Slug penetrates Wall. 25525_ U-05 Engineer builds a Wall. 25526_ R-10 Processor collects VTOL Module. 25528_ Slug penetrates Wall. 25534_ W-25 Informer sends out distress signal. 25534_ U-05 Engineer lays Concrete. 25535_ U-05 Engineer builds a Wall. 25543_ Penetrated by Slug. 25543_ Lgt. Angular Momentum Engine destroyed. Map ----- +----------------------------------------------------+ | | | | | | | | | | | | | | | | | | | | | | | | | | | | | | | | | ???##########????????????????????????????????????? | | ??# ! #????????????????????????????????????? | | ??# #????????????????????????????????????? | | ??# h #???????##########???????????????????? | | ??# !#???????#!! #???????????????????? | | ??##+##+##########??#! +???????????????????? | | ???# #??# ] #???????????????????? | | ???# #??# #??#???"????????????? | | ???# """ """ #??# #? # ""? ??????????? | | ???# """ """ #??# @ # """ "?????????? | | ???# """ """ #??# # ?????????? | | #### ! #??# #u# ????????? | | #??# ## # ?????????? | | ####### ######## #??#####+##### ## +#########? | | ??????# # #??????# R #? | | ??????# # #??????# #? | | ??????# # # #### #? | | ??????# # Y * bY +? | | ??????# + # #### h #? | | ??????# # #????#####l#### # #+### #? | | ??????# # #????# # ## # ## | | ??????# # #????# """ # ## ! # | | ??????# # !#????# """ + ## # | | ??????# # #????# """ # + # "" | | ??????# # #????# # ## # "" | | ??????# # #????# """ # ## !# "" | | ####### "######????# """ # ## # "" | | ##?????????# """ # ## # "" | | ###### #??????????# g # ## # "" | | #????# #??????????#####+#+## ## # | | #????# #??????????????# ! ## # "" | | #????# #??????????????# ## # "" | | #????# #??????????????# ## # "" | | +###### #??????????????# w""" ## # "" | +----------------------------------------------------+ Best States ------------- Heat Dissipation 40 Energy Generation 31 Energy Capacity 890 Matter Stores 300 Matter Capacity 300 Sight Range 16 Robot Scan Range 30 Terrain Scan Density 10 Jamming Range 12 Power Amplification 30 Armor Coverage 750 Resistance: KI 30 Resistance: TH 10 Core Shielding 20 Propulsion Shielding 66 Utility Shielding 66 Weapon Cycling 30 Evasion (%) 65 Recoil Reduction 3 Matter Filtering 50 Offensive Hacking 48 Defensive Hacking 32 Item Schematics ----------------- Hcp. Storage Unit | -9/Materials | Hacked Exp. Sensor Array | -8/Materials | Scanalyzed Lgt. Fission Core | -8/Materials | Scanalyzed Imp. Propulsion Shielding | -7/Factory | Hacked Dynamic Insulation System | -7/Factory | Hacked Cloaking Device | -7/Data Miner | Free Exp. ECM Suite | -7/Data Miner | Free Exp. Terrain Scan Processor | -7/Data Miner | Free Cmb. Gravmag System | -7/Data Miner | Free Lgt. Regenerative Plating | -7/Data Miner | Free Combat Drone Bay | -7/Data Miner | Free Lrn. Terrain Scanner | -6/Factory | Hacked Nuclear Pulse Thruster | -6/Factory | Hacked Adv. Hacking Suite | -6/Factory | Hacked Cld. Cesium-ion Thruster | -6/Factory | Hacked Mic. Fission Core | -6/Factory | Hacked Field Propulsion Drive | -6/Extension | Hacked Robot Schematics ------------------ M-13 Machinist | -9/Materials | Hacked I-36 Angel | -7/Data Miner | Free X-72 Disruptor | -7/Data Miner | Free L-41 Fighter | -7/Data Miner | Free G-67 Veteran | -7/Data Miner | Free G-50 Soldier | -7/Data Miner | Free S-27 Virus | -7/Data Miner | Free Fabricated ------------ Exp. Sensor Array | x1 | -7/Factory Adv. Hacking Suite | x1 | -6/Factory Adv. Hacking Suite | x1 | -6/Factory Adv. Hacking Suite | x1 | -6/Factory Adv. Hacking Suite | x1 | -6/Factory Nuclear Pulse Thruster | x2 | -6/Factory Alien Tech Used ----------------- None Achievements -------------- None Challenges ------------ None Game ------ Seed GreatTractorDoomcannon Manual? 0 Play Time 03:11:19 Cumulative 582.2 hours Start 2021.06.13 @ 15:32:06 End 2021.06.14 @ 16:44:42 Sessions 11 Manual Loads 0 Difficulty Rogue Special Mode None Game No. 357 Rogue 357 Adventurer 0 Explorer 0 Win Type - Total 6 Types 4/0/1/0/1/0/0/0/0 Lore% 88 Gallery% 89 Achievement% 71 Wizard Run 0 Options --------- ASCII 0 Keyboard 0 Movement Mouse Keybinds 1 Fullscreen 2 Font 24/Smallcaps Map View 76x50 Tactical HUD 1 Map Filters NONE Filters NONE Steam 1 RUN: 8d730f67-8ff0-407f-a18f-fcb763439bb7